bitfinex-derivatives/quotes_ETHF0:USTF0_20241023
["timestamp","ask_amount","ask_price","bid_price","bid_amount"]
[1729703172993,2.8265,2488.2,2488.0,0.40223]
[1729703173187,2.4243,2488.2,2487.9,0.40224]
[1729703173384,4.39020851,2488.1,2487.9,0.40224]
[1729703173584,4.39020851,2488.1,2487.5,3.2078]
[1729703173892,7.0778,2488.7,2487.8,3.2078]
[1729703174196,3.2078,2488.7,2488.6,0.40213]
[1729703174795,4.27204,2489.2,2488.9,0.40207]
[1729703174796,3.2078,2489.0,2488.9,0.40207]
[1729703175289,3.2078,2489.5,2489.4,0.402]
[1729703175490,11.7671,2489.9,2489.0,3.2078]
[1729703175690,11.7671,2489.9,2489.3,0.40201]
[1729703175996,11.7671,2489.9,2489.3,40.8]
[1729703175997,4.49183119,2489.8,2489.3,40.8]
[1729703176498,0.40196,2489.7,2489.4,0.40199]
[1729703176694,3.2078,2489.6,2489.4,0.40199]
[1729703176897,7.70234263,2489.6,2489.1,40.8]
[1729703177102,3.87,2489.5,2489.1,40.8]
[1729703177297,7.0778,2489.5,2489.0,3.2078]
[1729703178098,4.422535,2489.4,2489.0,3.2078]
[1729703178303,4.824545,2489.4,2489.0,3.2078]
[1729703178595,4.824545,2489.4,2489.0,3.60985]
[1729703178797,4.422535,2489.4,2489.2,0.40202]
[1729703179000,4.422535,2489.4,2489.2,0.40203]
[1729703179198,4.824545,2489.4,2489.1,41.20204]
[1729703179498,4.422535,2489.4,2489.1,41.20204]
[1729703179710,4.422535,2489.4,2489.2,0.40202]
[1729703179904,4.824545,2489.4,2489.1,40.8]
[1729703180100,4.824545,2489.4,2489.1,41.20205]
[1729703180101,4.422535,2489.4,2489.1,41.20205]
[1729703180305,4.824535,2489.4,2489.1,41.20205]
[1729703180798,4.422535,2489.4,2489.2,0.40202]
[1729703180993,4.422535,2489.4,2489.1,40.8]
[1729703181198,4.422535,2489.4,2489.3,0.40202]
[1729703181500,4.422535,2489.4,2488.8,1.00525]
[1729703181706,4.422535,2489.4,2488.7,3.2078]
[1729703181911,4.422535,2489.4,2488.4,6.286]
[1729703181912,3.2078,2489.1,2488.4,2.416]
[1729703182105,0.40208,2488.9,2488.4,2.416]
[1729703182402,4.541564,2488.8,2488.4,2.416]
[1729703182607,4.541564,2488.8,2488.7,0.40211]
[1729703182906,4.541564,2488.9,2488.8,0.40209]
[1729703183107,2.2574,2489.0,2488.4,6.286]
[1729703183299,1.00499706,2489.2,2488.5,1.00537]
[1729703183499,1.00499706,2489.2,2488.6,3.2078]
[1729703183698,4.4186213,2489.0,2488.8,0.40209]
[1729703183997,4.4186213,2489.2,2488.6,4.21313]
[1729703184203,4.4186213,2489.2,2489.0,0.40206]
[1729703184400,3.28709706,2489.3,2488.4,6.286]
[1729703184600,0.40208,2489.0,2488.6,0.40212]
[1729703184801,3.2078,2489.1,2488.4,6.286]
[1729703185107,4.27415504,2489.0,2488.8,0.4021]
[1729703185604,4.27415504,2489.0,2488.4,6.286]
[1729703185810,0.4021,2488.8,2488.5,0.40214]
[1729703186014,4.67622504,2489.0,2488.7,0.40211]
[1729703186302,4.27415504,2489.0,2488.4,6.286]
[1729703186508,0.40211,2488.8,2488.5,0.40214]
[1729703186699,5.2791521,2489.0,2488.6,0.40212]
[1729703186899,0.40209,2488.9,2488.6,0.40212]
[1729703187411,4.28171771,2488.8,2488.4,2.416]
[1729703187597,4.28171771,2488.8,2488.3,3.2078]
[1729703187598,1.00499706,2488.7,2488.3,3.2078]
[1729703187795,1.00499706,2488.7,2488.5,0.40215]
[1729703187796,1.00499706,2488.6,2488.5,0.40215]
[1729703187996,3.69221706,2488.7,2488.3,3.2078]
[1729703188202,3.69221706,2488.7,2488.4,0.40215]
[1729703188610,3.29009706,2488.7,2488.3,3.2078]
[1729703188797,0.40209,2488.9,2488.3,3.2078]
[1729703188798,1.40708706,2488.9,2488.3,3.2078]
[1729703189304,4.62073386,2488.8,2488.7,0.40211]
[1729703189708,2.02289977,2489.0,2488.4,6.3158]
[1729703189915,8.02152472,2489.1,2488.8,0.4021]
[1729703189916,1.0121151,2488.9,2488.8,0.4021]
[1729703190208,5.22823248,2489.0,2488.9,0.40208]
[1729703190405,1.92009784,2489.1,2488.6,3.2078]
[1729703190406,1.0121151,2489.1,2489.0,0.40206]
[1729703190708,1.0121151,2489.1,2488.6,3.2078]
[1729703190905,1.0121151,2489.0,2488.9,0.40207]
[1729703191106,5.19671273,2489.0,2488.9,0.40207]
[1729703191301,4.18459763,2489.0,2488.9,0.40207]
[1729703191512,1.0121151,2489.1,2488.9,0.40207]
[1729703191711,1.0121151,2489.1,2489.0,0.40206]
[1729703191908,1.0121151,2489.1,2488.6,3.2078]
[1729703192104,1.0121151,2489.1,2488.9,0.40207]
[1729703192301,1.0121151,2489.1,2489.0,0.40206]
[1729703192706,1.0121151,2489.1,2488.9,0.40207]
[1729703192904,1.0121151,2489.0,2488.6,4.21312]
[1729703193105,1.0121151,2489.1,2488.6,4.21312]
[1729703193308,5.32649441,2489.1,2489.0,0.40206]
[1729703193504,1.0121151,2489.1,2488.6,4.21312]
[1729703193706,1.0121151,2489.1,2489.0,0.40206]
[1729703193905,1.0121151,2489.1,2488.6,4.21312]
[1729703194116,1.0121151,2489.1,2489.0,0.40206]
[1729703194314,1.4141651,2489.1,2488.9,0.40207]
[1729703194503,1.0121151,2489.1,2488.6,4.21312]
[1729703194709,1.0121151,2489.1,2489.0,0.40206]
[1729703194907,1.0121151,2489.1,2488.6,3.2078]
[1729703195117,1.0121151,2489.1,2488.4,9.65119]
[1729703195118,0.40215,2488.5,2488.4,2.4458]
[1729703195309,1.0121151,2488.6,2488.2,3.2078]
[1729703195615,1.0121151,2488.4,2488.2,3.2078]
[1729703195810,1.51804784,2488.5,2488.2,3.2078]
[1729703196113,1.01155126,2488.5,2488.2,3.2078]
[1729703196309,1.01155126,2488.5,2488.4,0.40216]
[1729703196816,2.3549,2488.7,2488.3,0.40218]
[1729703197009,2.3549,2488.7,2488.2,3.2078]
[1729703197211,2.75702,2488.7,2488.5,0.40214]
[1729703197415,2.3549,2488.7,2488.6,0.40213]
[1729703197609,3.2078,2489.1,2488.6,1.00533]
[1729703197806,3.28685126,2489.3,2488.8,0.40209]
[1729703197807,0.40207,2489.0,2488.8,0.40209]
[1729703198216,3.2078,2489.1,2489.0,0.40206]
[1729703198607,5.60015126,2489.5,2489.3,0.40201]
[1729703198608,4.5886,2489.5,2489.3,0.40201]
[1729703198808,4.5886,2489.5,2488.8,3.2078]
[1729703199012,0.40202,2489.3,2489.1,0.40204]
[1729703199211,4.22009389,2489.4,2489.1,0.40204]
[1729703199617,0.40207,2489.0,2488.8,3.2078]
[1729703199919,0.40207,2489.0,2488.6,2.3674]
[1729703199920,0.40206,2489.1,2488.9,0.40207]
[1729703200111,0.40207,2489.0,2488.8,0.40209]
[1729703200305,4.59145612,2489.0,2488.8,0.40209]
[1729703200509,0.40207,2489.0,2488.9,0.40208]
[1729703200717,3.2078,2489.3,2488.6,2.3674]
[1729703201013,4.30865233,2489.2,2488.6,2.3674]
[1729703201217,0.40206,2489.1,2488.9,0.40207]
[1729703201605,4.78031185,2489.0,2488.8,0.40209]
[1729703201815,1.00528,2488.8,2488.0,44.0078]
[1729703202015,2.3005,2488.7,2488.0,45.01336]
[1729703202216,0.40216,2488.5,2488.3,0.40218]
[1729703202517,2.3005,2488.7,2488.5,0.40214]
[1729703202704,0.40213,2488.6,2488.4,0.40215]
[1729703202910,0.40213,2488.6,2488.1,1.00552]
[1729703203114,0.40213,2488.6,2488.4,0.40216]
[1729703203307,0.40213,2488.6,2488.0,45.01336]
[1729703203308,2.3005,2488.7,2488.0,45.01336]
[1729703203508,0.40214,2488.6,2488.1,1.00552]
[1729703203715,2.70263,2488.7,2488.5,0.40214]
[1729703203908,3.71418126,2488.7,2488.5,0.40214]
[1729703204108,3.71418126,2488.7,2488.0,44.0078]
[1729703204109,9.38160769,2488.6,2488.0,44.0078]
[1729703204310,0.40221,2488.1,2488.0,44.41003]
[1729703204616,0.40221,2488.1,2488.0,44.0078]
[1729703204815,1.01155126,2488.2,2488.1,0.40221]
[1729703205012,1.92022784,2488.3,2487.8,0.40225]
[1729703205013,0.40224,2488.0,2487.8,0.40225]
[1729703205316,0.40224,2488.0,2487.4,1.00579]
[1729703205317,4.4289809,2487.9,2487.4,5.6281]
[1729703205520,0.40229,2487.7,2487.5,41.2023]
[1729703205713,1.41761887,2487.8,2487.6,0.40228]
[1729703206017,1.41761887,2487.8,2487.5,40.8]
[1729703206018,1.01535887,2487.8,2487.7,0.40227]
[1729703206209,1.41761887,2487.8,2487.6,0.40228]
[1729703206619,1.01535887,2487.8,2487.7,0.40227]
[1729703207320,1.51804784,2488.0,2487.7,11.0978]
[1729703207520,1.51804784,2488.2,2488.1,0.40221]
[1729703208017,2.02289977,2488.4,2488.1,4.0192]
[1729703208018,1.51804784,2488.4,2488.1,4.0192]
[1729703208218,1.51804784,2488.4,2488.3,0.40218]
[1729703208419,1.51804784,2488.5,2488.3,3.2078]
[1729703208617,1.51804784,2488.5,2488.4,0.40216]
[1729703209020,1.51804784,2488.5,2488.4,4.42056]
[1729703209317,3.82054784,2488.8,2488.7,0.40211]
[1729703209522,3.82054784,2488.8,2488.4,5.0238]
[1729703209523,4.72584784,2488.9,2488.4,1.0054]
[1729703209719,4.72584784,2488.9,2488.8,0.4021]
[1729703210023,5.12792784,2488.9,2488.8,40.8]
[1729703210330,3.60988,2488.9,2488.8,40.8]
[1729703210524,5.13442118,2488.9,2488.8,40.8]
[1729703210817,4.73234118,2488.9,2488.8,41.2021]
[1729703211018,2.42495977,2489.1,2488.8,40.8]
[1729703211019,1.52454118,2489.0,2488.8,40.8]
[1729703211218,1.52454118,2489.0,2488.9,0.40208]
[1729703211424,5.75570427,2489.0,2488.9,0.40208]
[1729703211921,0.40206,2489.0,2488.8,41.20209]
[1729703212115,0.40207,2489.0,2488.8,41.20209]
[1729703212510,0.40207,2489.0,2488.8,40.8]
[1729703212718,2.4354,2489.2,2488.8,41.20208]
[1729703213015,2.4354,2489.2,2488.8,40.8]
[1729703213916,0.40207,2489.0,2488.8,41.2021]
[1729703214119,0.40208,2488.9,2488.8,40.8]
[1729703214618,7.16774118,2489.2,2488.8,40.8]
[1729703214819,0.40208,2488.9,2488.8,40.8]
[1729703215422,0.50304118,2489.1,2488.8,46.607]
[1729703215628,48.78740632,2490.0,2489.1,1.00511]
[1729703215826,48.78740632,2490.0,2489.5,3.87]
[1729703216121,4.31600784,2489.7,2489.5,4.27197]
[1729703216423,0.40194,2489.8,2489.5,4.27197]
[1729703216620,4.27104265,2489.6,2489.5,4.27197]
[1729703216917,2.83243,2489.9,2489.4,0.40199]
[1729703216918,4.67300265,2489.7,2489.4,0.40199]
[1729703217120,4.67300265,2489.7,2489.2,6.2963]
[1729703217121,7.47884265,2489.8,2489.6,0.40197]
[1729703217424,4.27104265,2489.6,2489.5,0.40197]
[1729703217719,0.40196,2489.7,2489.4,0.40199]
[1729703218017,4.45942347,2489.6,2489.5,0.40198]
[1729703218423,3.60974,2489.8,2489.5,0.40198]
[1729703218618,4.42575669,2489.6,2489.5,0.40198]
[1729703218926,4.42575669,2489.7,2489.2,8.5909]
[1729703219221,4.82774669,2489.5,2489.3,0.40202]
[1729703219421,4.82774669,2489.5,2489.0,3.87]
[1729703219422,4.42575669,2489.5,2489.0,3.87]
[1729703219619,2.93058472,2489.7,2489.4,0.40199]
[1729703219820,2.13460751,2489.6,2489.4,0.402]
[1729703220015,2.52862472,2489.8,2489.5,3.87]
[1729703220218,4.95912472,2489.9,2489.5,3.87]
[1729703220421,4.27813281,2489.8,2489.6,0.40196]
[1729703220624,4.27813281,2489.8,2489.5,3.87]
[1729703220625,50.55131472,2490.0,2489.7,3.87]
[1729703220824,48.02269,2490.0,2489.9,0.40192]
[1729703221220,48.02269,2490.0,2489.9,4.41792]
[1729703221821,48.02269,2490.0,2489.9,45.21792]
[1729703222020,35.72269,2490.0,2489.9,45.21792]
[1729703222227,22.61805,2490.0,2489.9,45.21792]
[1729703222423,20.50803,2490.0,2489.9,45.21792]
[1729703222627,9.47481274,2490.0,2489.9,45.21792]
[1729703222824,2.436,2491.2,2489.9,44.816]
[1729703223028,4.016,2491.1,2491.0,0.40173]
[1729703223335,4.016,2491.2,2491.1,0.40173]
[1729703223624,4.016,2491.2,2491.1,3.60953]
[1729703224031,4.016,2491.2,2491.1,44.40953]
[1729703224824,4.016,2491.2,2491.1,44.0078]
[1729703225828,4.016,2491.2,2491.1,44.40953]
[1729703226030,2.2555,2491.5,2491.2,0.40169]
[1729703226330,4.016,2491.4,2491.1,47.8778]
[1729703226525,3.2078,2491.7,2491.1,47.8778]
[1729703226526,4.016,2491.5,2491.1,47.8778]
[1729703226730,4.016,2491.5,2491.4,0.40168]
[1729703226937,4.016,2491.5,2491.4,4.27168]
[1729703227230,4.016,2491.5,2491.4,7.47948]
[1729703227426,4.693,2491.9,2491.4,7.0778]
[1729703227733,0.4016,2491.9,2491.7,7.0778]
[1729703228033,5.4654,2492.3,2491.7,3.87]
[1729703228331,5.4654,2492.3,2492.1,0.40156]
[1729703228332,4.016,2492.2,2492.1,0.40156]
[1729703228529,3.2078,2492.3,2492.1,3.87]
[1729703228830,2.3793,2492.5,2492.0,3.2078]
[1729703229027,4.016,2491.8,2491.5,3.2078]
[1729703229220,4.016,2491.9,2491.7,0.40162]
[1729703229417,4.016,2492.1,2491.5,3.2078]
[1729703229619,4.016,2492.1,2491.8,40.8]
[1729703229823,4.016,2492.1,2492.0,0.40158]
[1729703230022,3.2078,2492.6,2492.0,3.87]
[1729703230225,3.2078,2492.6,2492.5,0.4015]
[1729703230431,4.016,2492.5,2492.4,3.87]
[1729703230621,0.40144,2492.9,2492.4,3.87]
[1729703230821,4.016,2492.9,2492.7,3.87]
[1729703231025,2.75112,2493.0,2492.4,4.27151]
[1729703231026,4.016,2492.7,2492.4,4.27151]
[1729703231222,4.016,2492.7,2492.0,1.00393]
[1729703231223,5.5575,2493.0,2492.2,3.87]
[1729703231427,5.5575,2493.0,2491.8,40.8]
[1729703231428,4.016,2492.2,2491.8,40.8]
[1729703232035,4.016,2492.2,2491.9,0.40159]
[1729703232237,4.016,2492.2,2492.1,0.40156]
[1729703232428,3.2078,2492.4,2492.1,0.40156]
[1729703232629,4.016,2492.3,2492.0,3.2078]
[1729703232840,4.016,2492.3,2492.2,0.40155]
[1729703233025,4.016,2492.3,2492.0,3.2078]
[1729703233435,4.016,2492.3,2492.1,0.40155]
[1729703233630,2.2882,2492.6,2492.0,3.2078]
[1729703233829,4.016,2492.4,2492.0,3.2078]
[1729703234033,4.016,2492.3,2492.0,3.2078]
[1729703234439,0.40151,2492.5,2492.1,0.40156]
[1729703234736,0.40151,2492.5,2492.0,3.2078]
[1729703234737,4.016,2492.6,2492.5,0.4015]
[1729703234936,2.75113,2493.0,2492.3,7.0778]
[1729703235137,4.016,2492.8,2492.7,0.40146]
[1729703235632,2.3497,2493.0,2492.6,3.87]
[1729703235832,2.3497,2493.0,2492.8,0.40144]
[1729703235833,6.3657,2493.0,2492.8,0.40144]
[1729703236028,6.3657,2493.0,2492.6,3.87]
[1729703236029,2.3497,2493.0,2492.6,3.87]
[1729703236230,2.3497,2493.0,2492.9,0.40144]
[1729703236434,0.40135,2493.5,2493.1,0.4014]
[1729703236645,4.016,2493.4,2493.0,3.2078]
[1729703236829,3.2078,2493.6,2493.0,3.2078]
[1729703237031,4.016,2493.5,2493.4,0.40134]
[1729703237632,3.2078,2493.6,2493.5,0.40134]
[1729703238037,5.5501,2493.9,2493.5,0.40134]
[1729703238239,4.016,2493.7,2493.5,0.40134]
[1729703238439,4.016,2493.7,2493.4,3.87]
[1729703238632,4.016,2493.7,2493.5,0.40133]
[1729703238832,4.016,2493.7,2493.4,3.87]
[1729703239036,4.016,2493.7,2493.5,0.40133]
[1729703239237,3.2078,2493.9,2493.8,0.40129]
[1729703239541,7.2238,2493.9,2493.8,0.40129]
[1729703239738,7.2238,2493.9,2493.5,0.40133]
[1729703239739,0.4013,2493.8,2493.5,0.40133]
[1729703239943,3.2078,2493.9,2493.6,3.87]
[1729703240436,3.2078,2493.9,2493.7,0.40131]
[1729703240638,3.2078,2493.9,2493.8,0.40129]
[1729703241239,4.6424,2494.4,2493.8,40.8]
[1729703241436,4.41726,2494.1,2493.8,41.20129]
[1729703241639,4.016,2494.1,2493.8,44.0078]
[1729703241952,4.41725,2494.1,2493.8,44.40908]
[1729703242244,4.016,2494.1,2493.9,0.40127]
[1729703242653,4.016,2494.1,2493.8,3.2078]
[1729703242841,4.016,2493.9,2493.6,0.40132]
[1729703243042,4.016,2493.7,2493.6,0.40131]
[1729703243238,4.016,2493.7,2493.6,4.27131]
[1729703243441,3.2078,2494.2,2493.6,3.87]
[1729703243641,3.2078,2494.2,2493.7,0.4013]
[1729703243642,4.016,2493.8,2493.7,0.4013]
[1729703243836,3.2078,2494.2,2493.6,3.87]
[1729703243837,4.016,2494.0,2493.6,3.87]
[1729703244044,4.016,2494.1,2493.9,0.40127]
[1729703244546,4.6424,2494.4,2494.0,3.87]
[1729703244743,6.3305,2494.4,2494.3,0.40121]
[1729703245444,2.3145,2494.4,2494.3,0.40121]
[1729703245646,2.3145,2494.4,2494.1,3.2078]
[1729703245647,2.7157,2494.4,2494.1,3.60904]
[1729703245835,3.2078,2494.8,2494.3,3.87]
[1729703246042,4.016,2494.6,2494.4,3.60899]
[1729703246247,4.41717,2494.6,2494.4,3.2078]
[1729703246443,4.016,2494.6,2494.4,3.2078]
[1729703246647,4.016,2494.6,2494.3,3.87]
[1729703246842,4.016,2494.4,2493.9,3.2078]
[1729703247044,4.016,2494.5,2494.3,3.87]
[1729703247550,4.016,2494.5,2494.4,0.40119]
[1729703248045,4.016,2494.5,2494.3,4.2712]
[1729703248247,3.2078,2494.8,2494.4,0.40119]
[1729703248443,3.2078,2494.8,2494.3,3.87]
[1729703248444,4.016,2494.6,2494.3,3.87]
[1729703248644,4.016,2494.4,2494.3,3.87]
[1729703249037,4.016,2494.4,2494.3,4.27121]
[1729703249648,4.016,2494.4,2494.3,3.87]
[1729703250048,3.2078,2494.8,2494.3,4.27121]
[1729703250350,3.2078,2494.8,2494.0,4.21094]
[1729703250351,4.016,2494.6,2494.5,4.27118]
[1729703250651,3.2078,2494.8,2494.2,0.40122]
[1729703250652,4.016,2494.3,2494.2,0.40122]
[1729703250852,4.016,2494.3,2494.2,41.20122]
[1729703251550,4.016,2494.3,2494.0,9.0088]
[1729703251551,4.016,2494.3,2494.0,3.87]
[1729703251856,4.016,2494.2,2494.1,0.40124]
[1729703252048,4.016,2494.2,2494.1,41.20124]
[1729703252357,4.016,2494.2,2494.0,3.87]
[1729703252358,0.40125,2494.1,2493.8,4.27128]
[1729703252557,4.016,2494.0,2493.9,0.40127]
[1729703252749,8.4922,2494.1,2494.0,0.40126]
[1729703252945,4.016,2494.1,2494.0,4.27126]
[1729703253147,3.2078,2494.8,2494.1,0.40124]
[1729703253148,2.285,2494.4,2494.1,0.40124]
[1729703253450,2.285,2494.4,2494.3,4.27121]
[1729703253853,6.70219,2494.4,2494.1,0.40123]
[1729703254153,4.016,2494.3,2494.2,0.40123]
[1729703254758,4.016,2494.3,2494.2,4.27123]
[1729703255449,2.285,2494.4,2494.3,0.40121]
[1729703255647,6.301,2494.4,2494.3,0.40121]
[1729703257954,6.301,2494.4,2494.1,3.2078]
[1729703258144,4.016,2494.2,2494.0,3.87]
[1729703258347,4.016,2494.3,2494.2,0.40123]
[1729703258656,3.60894,2494.8,2494.5,0.40116]
[1729703258854,2.2641,2494.6,2494.5,4.27118]
[1729703259052,6.2801,2494.6,2494.5,4.27118]
[1729703259952,2.2641,2494.6,2494.5,4.27118]
[1729703260452,3.2078,2495.5,2494.5,7.8788]
[1729703260643,3.2078,2495.5,2494.4,5.2138]
[1729703260644,4.016,2495.0,2494.9,0.40111]
[1729703260846,8.75496414,2495.6,2494.9,3.87]
[1729703261047,8.75496414,2495.6,2495.1,0.40108]
[1729703261048,4.016,2495.2,2495.1,0.40108]
[1729703261344,4.016,2495.2,2495.1,3.60888]
[1729703261651,0.40102,2495.5,2495.3,0.40104]
[1729703261849,4.016,2495.4,2495.3,4.27104]
[1729703262044,4.016,2495.5,2495.4,0.40103]
[1729703262553,1.00226,2496.3,2495.5,0.40102]
[1729703262554,3.2078,2496.3,2495.5,0.40102]
[1729703262751,4.016,2495.9,2495.7,7.0778]
[1729703263252,2.1901,2496.1,2495.7,7.0778]
[1729703263253,2.59103,2496.1,2495.8,41.20096]
[1729703263563,2.59102,2496.1,2495.8,41.20096]
[1729703263755,4.016,2496.0,2495.8,41.20096]
[1729703264257,4.016,2496.0,2495.8,40.8]
[1729703264459,6.3304,2495.9,2495.8,40.8]
[1729703265056,6.73135,2495.9,2495.8,40.8]
[1729703265253,8.7001,2495.9,2495.8,40.8]
[1729703265855,8.7001,2495.9,2495.8,41.20097]
[1729703266153,8.7001,2495.9,2495.8,40.8]
[1729703266549,9.10105,2495.9,2495.8,40.8]
[1729703267147,8.7001,2495.9,2495.8,40.8]
[1729703267754,6.3304,2495.9,2495.8,45.07097]
[1729703267949,2.3144,2495.9,2495.8,45.07097]
[1729703268351,3.2078,2496.3,2495.8,48.6764]
[1729703268550,4.016,2496.1,2496.0,3.87]
[1729703268756,4.016,2496.1,2496.0,4.27094]
[1729703268968,4.016,2496.1,2496.0,3.87]
[1729703269153,4.41692,2496.1,2495.8,45.07096]
[1729703269356,4.016,2496.0,2495.8,44.67]
[1729703269552,4.016,2496.0,2495.8,45.07096]
[1729703269752,4.016,2495.9,2495.8,40.8]
[1729703269952,4.016,2495.9,2495.8,41.20097]
[1729703270150,4.016,2495.9,2495.8,40.8]
[1729703270554,4.016,2495.9,2495.8,41.20097]
[1729703270756,4.016,2495.9,2495.8,40.8]
[1729703271159,4.016,2495.9,2495.8,44.67]
[1729703271562,4.016,2495.9,2495.8,45.07097]
[1729703271757,4.41695,2495.9,2495.8,44.67]
[1729703271967,4.016,2495.9,2495.8,45.07097]
[1729703272162,4.016,2495.9,2495.8,44.67]
[1729703272755,4.016,2495.9,2495.8,45.07097]
[1729703274260,2.1831,2496.2,2496.1,0.40092]
[1729703274566,2.1831,2496.2,2495.9,1.00238]
[1729703274567,4.016,2496.0,2495.9,4.27094]
[1729703274861,4.016,2496.0,2495.9,3.87]
[1729703275053,4.016,2496.0,2495.9,4.27095]
[1729703275254,2.1831,2496.2,2496.1,0.40092]
[1729703275462,4.6006,2496.5,2496.4,0.40087]
[1729703275660,8.6166,2496.5,2496.3,0.40088]
[1729703275879,4.016,2496.4,2496.3,0.40088]
[1729703276299,3.2078,2496.9,2496.1,8.0801]
[1729703276504,4.016,2496.5,2496.4,4.27087]
[1729703277291,4.016,2496.5,2496.3,3.60869]
[1729703278580,4.016,2496.1,2495.9,3.87]
[1729703278779,4.016,2496.1,2496.0,0.40094]
[1729703279180,4.016,2496.1,2495.8,40.8]
[1729703279370,4.41695,2495.9,2495.8,40.8]
[1729703279877,0.40104,2495.4,2495.1,3.87]
[1729703280072,0.40106,2495.3,2495.1,3.87]
[1729703280274,2.63766,2495.3,2495.2,40.8]
[1729703280475,4.016,2495.2,2494.6,7.0778]
[1729703280676,4.016,2494.7,2494.6,7.47895]
[1729703280977,4.016,2494.7,2494.6,48.27895]
[1729703281376,2.2424,2495.2,2494.6,51.8866]
[1729703281574,4.016,2495.0,2494.9,4.2711]
[1729703281875,4.016,2495.0,2494.6,45.01068]
[1729703281876,4.016,2495.0,2494.7,3.87]
[1729703282276,4.016,2494.8,2494.7,4.27114]
[1729703282676,4.41713,2494.8,2494.6,40.8]
[1729703282877,4.41715,2494.7,2494.6,40.8]
[1729703283272,7.62495,2494.7,2494.6,40.8]
[1729703283677,7.2238,2494.7,2494.6,40.8]
[1729703284078,7.62495,2494.7,2494.6,40.8]
[1729703284273,7.2238,2494.7,2494.6,40.8]
[1729703284673,7.62495,2494.7,2494.6,40.8]
[1729703286581,7.62495,2494.7,2494.2,4.27122]
[1729703286582,7.2238,2494.7,2494.2,3.87]
[1729703286775,7.2238,2494.7,2494.3,0.4012]
[1729703286776,4.016,2494.4,2494.3,0.4012]
[1729703286973,2.3608,2494.6,2494.4,0.40119]
[1729703287175,4.016,2494.5,2494.4,0.40119]
[1729703287376,4.016,2494.5,2494.4,4.27119]
[1729703288478,3.2078,2495.0,2494.4,7.8788]
[1729703288783,4.016,2494.9,2494.7,3.87]
[1729703288978,4.016,2494.5,2494.3,40.8]
[1729703289183,4.016,2494.4,2494.3,41.2012]
[1729703291574,3.2078,2494.6,2494.4,0.40119]
[1729703291778,3.2078,2494.6,2494.5,3.87]
[1729703291983,4.016,2494.4,2494.3,44.67]
[1729703292377,4.016,2494.4,2494.3,45.07121]
[1729703294780,3.2078,2494.6,2494.3,44.67]
[1729703295077,3.2078,2494.6,2494.4,0.40119]
[1729703295487,4.016,2494.5,2494.3,40.8]
[1729703295680,3.2078,2494.6,2494.3,41.20121]
[1729703295681,6.3966,2494.4,2494.3,41.20121]
[1729703298179,4.016,2494.4,2494.3,41.20121]
[1729703299989,4.016,2494.4,2494.3,40.8]
[1729703300187,4.016,2494.4,2494.3,41.20121]
[1729703300882,4.016,2494.4,2494.3,40.8]
[1729703301687,4.016,2494.4,2494.3,41.20121]
[1729703302483,4.016,2494.4,2494.3,45.07121]
[1729703302683,3.2078,2494.9,2494.6,1.0029]
[1729703302885,3.2078,2494.9,2494.8,0.40113]
[1729703303085,4.016,2494.7,2494.4,4.87297]
[1729703303395,4.016,2494.5,2494.4,4.27119]
[1729703305091,4.016,2494.5,2494.3,41.2012]
[1729703305290,2.3394,2494.4,2494.3,41.2012]
[1729703306896,6.3554,2494.4,2494.3,41.2012]
[1729703307198,6.3554,2494.4,2494.3,40.8]
[1729703307494,6.3554,2494.4,2494.3,41.20121]
[1729703308690,4.016,2494.4,2494.3,41.20121]
[1729703308886,3.60892,2494.9,2494.6,0.40115]
[1729703309193,3.60892,2494.9,2494.3,45.21001]
[1729703309194,4.016,2494.4,2494.3,41.20121]
[1729703309391,4.016,2494.4,2494.3,40.8]
[1729703309792,0.40124,2494.2,2493.8,0.40128]
[1729703309994,4.016,2494.0,2493.8,0.40128]
[1729703310302,0.40134,2493.5,2493.4,3.2078]
[1729703310492,0.40134,2493.5,2493.1,3.2078]
[1729703310493,7.2238,2493.5,2493.1,3.2078]
[1729703310691,4.016,2493.2,2493.1,44.0078]
[1729703310889,4.41739,2493.2,2493.1,40.8]
[1729703311395,7.62519,2493.2,2493.1,40.8]
[1729703311595,1.20964,2492.9,2492.5,0.40149]
[1729703311794,0.8082,2492.5,2492.4,3.60932]
[1729703311997,0.8082,2492.5,2492.4,44.40932]
[1729703312505,5.5014,2493.2,2492.9,0.40143]
[1729703312794,0.8082,2493.0,2492.7,4.87366]
[1729703313001,0.8082,2493.0,2492.9,0.40144]
[1729703313392,3.2078,2493.2,2493.1,0.4014]
[1729703313593,0.8082,2493.0,2492.9,0.40144]
[1729703315391,3.2078,2493.2,2492.9,8.28264]
[1729703315593,4.016,2493.2,2493.1,0.4014]
[1729703316298,4.016,2493.2,2493.1,41.2014]
[1729703316898,2.2056,2493.4,2493.3,0.40137]
[1729703317103,3.2078,2493.6,2493.5,0.40134]
[1729703317302,4.016,2493.6,2493.5,0.40134]
[1729703319810,4.016,2493.6,2493.1,41.80349]
[1729703319995,0.8082,2493.5,2493.1,40.8]
[1729703320196,2.2493,2493.4,2493.1,40.8]